{"text_format":"1","workbook":"xlsx","n_sheets":6,"sheets":["Instruktion till mallen","Antal l dieselekvivalenter","Andel förnybart","exempel antal l dieselekv.","exempel andel förnybart","Källhänvisningar"],"not_rendered":{"charts":0,"images":1,"macros":0,"external_links":0,"defined_names":0,"comments":0,"pivot_tables":0},"unopened":[],"bounds":{"document_bytes":16777216,"sheet_cells":100000,"rows_first":2000,"rows_last":500,"rows_between":2000,"halvings":0,"cell_chars":16384,"cell_head_chars":4096},"cells_cut":0,"cells_raw":0,"read":"whole","date_system":"1900"}

{"sheet":"Instruktion till mallen","index":0,"n_rows":14,"n_cols":1,"rows_kept":14,"cut":false,"hidden":false,"merged":[]}
["Den här fliken redogör för syfte med mallen och hur den ska fyllas i. fliken innehåller endast text i kolumn A. mallen innehåller 6 flikar totalt"]
["Redovisning av förnybart drivmedel och/eller el som kravställts i AUC.293/AFG.36 (Administrativa föreskrifter)"]
["Syfte"]
["Denna TMALL ska användas av leverantör till Trafikverket vid redovisning av kravuppfyllnad beträffande förnybara drivmedel och/eller el i AUC.293/AFG.36 (Administrativa föreskrifter i kontraktet).\n"]
["För ifyllnad av mallen"]
["Mallen innehåller två flikar för uppföljning av drivmedelskrav. Vilken flik som ska fyllas i beror på hur kravet är formulerat i de administrativa föreskrifterna (AF). Till hjälp att fylla i mallen finns två efterföljande flikar med exempel \n\nVälj fliken \"Antal l dieselekvivalenter\" om kravet i AFG.36/AUC.293 är formulerat som minsta antal liter dieselekvivalenter som ska utgöras av förnybart drivmedel och/eller el.  \nVälj fliken \"Andel förnybart\" om kravet i AFG.36/AUC.293  är formulerat som minsta andel förnybart drivmedel och/eller el (omräknad till energi) av total energimängd .\n\nEndast förbrukade mängder av respektive drivmedel eller el fylls i. \n"]
["Resultat"]
["Resultatet i mallen visar om kravet är uppfyllt eller inte\n\nRedovisningen av resultatet i mallen är utformat för att stämma överens med Trafikverkets generella vitesmodell för dessa drivmedelskrav. I Trafikverkets upphandlingar av Entreprenadkontrakt som görs med upphandlingsmallar enligt version 3.20 (införda 2024-03-15) utfaller vite för den mängd dieselekvivalenter som inte uppfyller kravet även där kravet är uttryckt som minsta andel förnybart drivmedel och/eller el (omräknad till energi) av total energimängd. På grund av detta ingår i resultatredovisningen även en uträkning av mängd dieselekvivalenter som saknas för kravuppfyllelse."]
["Verifiering av resultat"]
["Mängder av el och förnybart drivmedel ska baseras på vad som har tankats och använts vid utfört arbete av aktuella fordon och/eller maskiner. Mängderna ska kunna verifieras med tankningskvitto eller faktura. Om endast total mängd tankat förnybart drivmedel är känt och detta bara delvis har använts i entreprenad för Trafikverket får mängden som använts i entreprenaden för Trafikverket beräknas. Denna beräkning kan baseras på andel timmar eller kilometer av vad som totalt använts för aktuell tankning. beräkningen ska godkännas av beställaren.\n\nFör verifiering av elförbrukning i bilar och lätta lastbilar tillåts ett schablonvärde per sträcka användas. Schablonvärdet som gäller för elbil är då 0,22kWh/km och för lätt eldriven lastbil 0,26 kWh/km. Som verifikat räknas då avläsning av körsträcka via körjournal, mätarställning, färddator eller digitala system\n\nFör beräkning av mängden fossila drivmedel i tabell A i fliken \"Andel förnybart\"  får drivmedelsschablon användas för att ersätta uppgift om verklig uppmätt förbrukning. Drivmedelsschablonen uttryckt i liter per kilometer, liter per timma eller motsvarande ska baseras på likvärdigt fordon eller maskin. "]
["Förklaring till kolumnerna i tabellerna"]
["Mängd: Här ska den faktiska mängden av varje sort av drivmedel som har använts under året fyllas i\nEnhet: Den enhet varje drivmedelsslag tillförs fordonet med.\nEnergiinehåll: Anger hur mycket energi i termer av J eller kWh som utvecklas vid förbränning av en viss mängd av ett bränsleslag alternativt förbrukning av en viss mängd el. Olika drivmedel har olika energiinnehåll (värmevärden). Det innebär att den effekt som kan nyttjas av samma mängd drivmedel skiljer sig åt. Så t.ex. så ger 1l fossil diesel 9,8 kWh medan 1l HVO-100 endast ger 9,44 kWh.  \nI beräkningarna antas bensin och alkylatbensin ha samma energiinnehåll som diesel.\nkWh/enhet: Den enhet som det specifika drivmedlet är beskrivet med i underlag redovisade i fliken \"källhänvisningar\" i denna mall\nOmräkningsfaktorn: Används i beräkningarna för att få en jämförelse till hur effektivt energiinnehållet i alla drivmedel kan omvandlas till nytta i respektive motor i förhållande till fossil diesel en dieselmotor används i beräkningarna en omräkningsfaktor. En elmotor är t.ex. 3 gånger så effektiv medan en gasmotor har 25% sämre effektivitet än en dieselmotor. Omräkningsfaktorn har beslutats av Trafikverket baserat på underlag från olika källor\nTotal omräknad energimängd (kWh): Beräkning av den totala mängden nyttjad energi av respektive drivmedel omvandlat till hur stor mängd energianvändning det motsvarar för fossil diesel i en dieselmotor. Resultatet i denna kolumn används för att svara på om kravet för andel förnybart eller el har uppnåtts eller inte i fliken \"Andel förnybart\"\nDieselekvivalenter: Beräkning av hur många liter dieselekvivalenter den inlagda mängden olika drivmedel och el motsvarar. Resultatet i denna kolumn används för att svara på om mängden förnybara drivmedel eller el som använts motsvarar de antal l dieselekvivalenter som kravställts i fliken \"antal l dieselekvivalenter\".\n\nOBS! Energiinnehåll och omräkningsfaktorer är fastställda av Trafikverket. Andra värden än de fastställda tillåts ej användas vid redovisningen.\n"]
["Källhänvisningar"]
["Den sista fliken i mallen redogör för vilka källor som använts för beräkningarna av energiinnehåll för de olika drivmedelsslagen"]

{"sheet":"Antal l dieselekvivalenter","index":1,"n_rows":36,"n_cols":7,"rows_kept":36,"cut":false,"hidden":false,"merged":[]}
["Denna flik innehåller tabeller som ska fyllas i för redovisning enligt krav på antal liter dieselekvivalenter  samt en instruktion i en faktaruta ovanför tabellen"]
["Krav på antal liter dieselekvivalenter som ska bestå av förnybart drivmedel och/eller el"]
["Använd denna flik om kravet i AFG.36/AUC.293 är formulerat som minsta antal liter dieselekvivalenter som ska utgöras av förnybart drivmedel och/eller el.  "]
["Innan du fyller i mallen läs informationen i fliken \"Instruktion till mallen\""]
[]
[]
[]
[]
[]
[]
[]
[]
[]
[]
[]
[]
[]
[]
[]
[]
["Redovisning gäller för år:"]
["Antal liter dieselekvivalenter som ska vara förnybara:",null,"l"]
["Energiinehåll fossil diesel:",9.8000000000000007,"kWh/l"]
["Tabell 1. Förnybara drivmedel och el (omfattas av krav enligt AFG.36/AUC.293)"]
["Drivmedel","Mängd","Enhet","Energiinnehåll","kWh/enhet","omräkningsfaktor","Dieselekvivalenter (l)"]
["HVO 100%",null,"l",9.44,"kWh/liter",1,{"$f":"B26*D26/$B$23*F26","v":0}]
["RME eller annan FAME 100%",null,"l",9.17,"kWh/liter",1,{"$f":"B27*D27/$B$23*F27","v":0}]
["E85 ",null,"l",6.59,"kWh/liter",1,0]
["ED95",null,"l",5.9,"kWh/liter",1,0]
["Biogas (flytande, gas) eller fordonsgas om den innehåller minst 75% biogas",null,"kg",13.6,"kWh/kg",0.75,0]
["El ",null,"kWh",1,"kWh/kWh",3,0]
["Vätgas producerad från biomassa/vindkraft (förnybar)*",null,"kg",33,"kWh/kg",1.33,{"$f":"B32*D32/$B$23*F32","v":0}]
["Summa",null,null,null,null,null,{"$f":"SUM(G26:G32)","v":0}]
["*får bara fyllas i om vätgasen har använts i ett bränslecellsfordon och INTE om den har använts i ett fordon med förbränningsmotor."]
["Antal l dieselekvivalenter av förnybart drivmedel och/eller el:",null,null,null,null,{"$f":"SUM(G33)","v":0},{"$f":"IF(ISBLANK(B22),\"Kravet ej nått\",IF(G33>=B22,\"Kravet uppfyllt\", \"Kravet ej nått\"))","v":"Kravet ej nått"}]
["Antal liter dieselekvivalenter av förnybart drivmedel som saknas för kravuppfyllelse:",null,null,null,null,{"$f":"IF(B22>=F35,B22-F35,0)","v":0},"l dieselekvivalenter"]

{"sheet":"Andel förnybart","index":2,"n_rows":50,"n_cols":8,"rows_kept":50,"cut":false,"hidden":false,"merged":[]}
["Denna flik innehåller tabeller som ska fyllas i för redovisning enligt krav på andel förnybart drivmedel och/eller el samt en instruktion i en faktaruta ovanför tabellen"]
["Krav på andel förnybart drivmedel och/eller el (i energimängd)"]
["Använd denna flik om kravet i AFG.36/AUC.293  är formulerat som minsta andel förnybart drivmedel och/eller el (omräknad till energi) av total energimängd ."]
["Innan du fyller i mallen läs informationen i fliken \"Instruktion\""]
[]
[]
[]
[]
[]
[]
[]
[]
[]
[]
[]
[]
[]
[]
[]
[]
[]
[]
["Redovisning gäller för år:"]
["Andel av total drivmedelsmängd omräknat till energi som enligt krav ska vara förnybart: "]
[]
["Tabell A - Fossila drivmedel"]
["Drivmedel","Mängd","Enhet","Energiinnehåll","kWh/enhet","omräkningsfaktor","Total omräknad energimängd (kWh)","Dieselekvivalenter (l)"]
["Fossil Diesel , alkylatbensin och bensin  (även sådant som innehåller inblandning av biodrivmedel under reduktionsplikten, ex.vis HVO-97)",null,"l",9.8000000000000007,"kWh/liter",1,{"$f":"F28*D28*B28","v":0},{"$f":"B28*D28/$D$28*F28","v":0}]
["Naturgas (flytande eller gasform)",null,"kg",13.7,"kWh/kg",0.75,{"$f":"F29*D29*B29","v":0},{"$f":"B29*D29/$D$28*F29","v":0}]
["Vätgas från ickeförnybara källor ",null,"kg",33,"kWh/kg",1.33,{"$f":"F30*D30*B30","v":0},0]
["Summa",null,null,null,null,null,{"$f":"SUM(G28:G30)","v":0},{"$f":"SUM(H28:H30)","v":0}]
[]
["Tabell B- Förnybara drivmedel och el (omfattas av krav enligt AFG.36/AUC.293)"]
["Drivmedel","Mängd","Enhet","Energiinnehåll","kWh/enhet","omräkningsfaktor","Total omräknad energimängd (kWh)","Dieselekvivalenter (l)"]
["HVO 100%",null,"l ",9.44,"kWh/liter",1,{"$f":"B35*D35*F35","v":0},{"$f":"B35*D35/$D$28*F35","v":0}]
["RME eller annan FAME 100%",null,"l ",9.17,"kWh/liter",1,0,{"$f":"B36*D36/$D$28*F36","v":0}]
["E85 ",null,"l ",6.59,"kWh/liter",1,0,0]
["ED95",null,"l ",5.9,"kWh/liter",1,0,0]
["Biogas (flytande, gas) eller fordonsgas om den innehåller minst 75% biogas",null,"kg",13.6,"kWh/kg",0.75,0,0]
["El ",null,"kWh",1,"kWh/kWh",3,0,0]
["Vätgas producerad från biomassa/vindkraft (förnybar)*",null,"kg",33,"kWh/kg",1.33,{"$f":"B41*D41*F41","v":0},{"$f":"B41*D41/$D$28*F41","v":0}]
["Summa",null,null,null,null,null,{"$f":"SUM(G35:G41)","v":0},{"$f":"SUM(H35:H41)","v":0}]
["*får bara fyllas i om vätgasen har använts i ett bränslecellsfordon och INTE om den har använts i ett fordon med förbränningsmotor."]
[]
[]
[]
["Andel av total drivmedelsmängd omräknat till energi som är förnybart:",null,null,null,null,null,{"$f":"G42/(G31+G42)","v":{"$error":"#DIV/0!"}},{"$f":"IF(ISBLANK(B24),\"Kravet ej nått\",IF(G47>=B24,\"Kravet uppfyllt\", \"Kravet ej nått\"))","v":"Kravet ej nått"}]
["Minsta antal liter dieselekvivalenter som enligt krav ska vara förnybara:",null,null,null,null,null,{"$f":"SUM((H42+H31)*B24)","v":0},"liter dieselekvivalenter**"]
["Antal liter dieselekvivalenter av förnybart drivmedel som saknas för kravuppfyllelse:",null,null,null,null,null,{"$f":"IF(G48>=H42,G48-H42,0)","v":0},"liter dieselekvivalenter**"]
["** används för uppföljning om vite är kopplat till antal liter dieselekvivalenter"]

{"sheet":"exempel antal l dieselekv.","index":3,"n_rows":31,"n_cols":7,"rows_kept":31,"cut":false,"hidden":false,"merged":[]}
["Denna flik visar ett exempel på hur du fyller i fliken \"Antal liter dieselekvivalenter\""]
["Exempel. Krav på antal liter dieselekvivalenter som ska bestå av förnybart drivmedel och/eller el"]
[]
[]
[]
[]
[]
[]
[]
[]
[]
[]
[]
[]
[]
["Redovisning gäller för år:",2024]
["Antal liter dieselekvivalenter som ska vara förnybara:",300000,"l"]
["Energiinehåll fossil diesel:",9.8000000000000007,"kWh/l"]
["Tabell 1. Förnybara drivmedel och el (omfattas av krav enligt AFG.36/AUC.293)"]
["Drivmedel","Mängd","Enhet","Energiinnehåll","kWh/enhet","omräkningsfaktor","Dieselekvivalenter (l)"]
["HVO 100%",100000,"l",9.44,"kWh/liter",1,{"$f":"B21*D21/$B$18*F21","v":96326.530612244896}]
["RME eller annan FAME 100%",null,"l",9.17,"kWh/liter",1,{"$f":"B22*D22/$B$18*F22","v":0}]
["E85 ",null,"l",6.59,"kWh/liter",1,0]
["ED95",null,"l",5.9,"kWh/liter",1,0]
["Biogas (flytande, gas) eller fordonsgas om den innehåller minst 75% biogas",10000,"kg",13.6,"kWh/kg",0.75,10408.163265306121]
["El ",100000,"kWh",1,"kWh/kWh",3,30612.244897959179]
["Vätgas producerad från biomassa/vindkraft (förnybar)*",null,"kg",33,"kWh/kg",1.33,{"$f":"B27*D27/$B$18*F27","v":0}]
["Summa",null,null,null,null,null,{"$f":"SUM(G21:G27)","v":137346.93877551021}]
["*får bara fyllas i om vätgasen har använts i ett bränslecellsfordon och INTE om den har använts i ett fordon med förbränningsmotor."]
["Antal l dieselekvivalenter av förnybart drivmedel och/eller el:",null,null,null,null,{"$f":"SUM(G28)","v":137346.93877551021},{"$f":"IF(ISBLANK(B17),\"Kravet ej nått\",IF(G28>=B17,\"Kravet uppfyllt\", \"Kravet ej nått\"))","v":"Kravet ej nått"}]
["Antal liter dieselekvivalenter av förnybart drivmedel som saknas för kravuppfyllelse:",null,null,null,null,{"$f":"IF(B17>=F30,B17-F30,0)","v":162653.06122448979},"l dieselekvivalenter"]

{"sheet":"exempel andel förnybart","index":4,"n_rows":41,"n_cols":8,"rows_kept":41,"cut":false,"hidden":false,"merged":[]}
["Denna flik visar ett exempel på hur du fyller i fliken andel förnybart"]
["Exempel. Krav på andel förnybart drivmedel och/eller el (i energimängd)"]
[]
[]
[]
[]
[]
[]
[]
[]
[]
[]
[]
["Redovisning gäller för år:",2026]
["Andel av total drivmedelsmängd omräknat till energi som enligt krav ska vara förnybart: ",0.7]
[]
["Tabell A - Fossila drivmedel"]
["Drivmedel","Mängd","Enhet","Energiinnehåll","kWh/enhet","omräkningsfaktor","Total omräknad energimängd (kWh)","Dieselekvivalenter (l)"]
["Fossil Diesel , alkylatbensin och bensin  (även sådant som innehåller inblandning av biodrivmedel under reduktionsplikten, ex.vis HVO-97)",500,"l",9.8000000000000007,"kWh/liter",1,{"$f":"F19*D19*B19","v":4900},{"$f":"B19*D19/$D$19*F19","v":499.99999999999994}]
["Naturgas (flytande eller gasform)",200,"kg",13.7,"kWh/kg",0.75,{"$f":"F20*D20*B20","v":2054.9999999999995},{"$f":"B20*D20/$D$19*F20","v":209.69387755102039}]
["Vätgas från ickeförnybara källor ",null,"kg",33,"kWh/kg",1.33,{"$f":"F21*D21*B21","v":0},0]
["Summa",null,null,null,null,null,{"$f":"SUM(G19:G21)","v":6955},{"$f":"SUM(H19:H21)","v":709.69387755102036}]
[]
["Tabell B- Förnybara drivmedel och el (omfattas av krav enligt AFG.36/AUC.293)"]
["Drivmedel","Mängd","Enhet","Energi-innehåll","kWh/enhet","omräknings-faktor","Total omräknad energimängd (kWh)","Dieselekvivalenter (l)"]
["HVO 100%",null,"l ",9.44,"kWh/liter",1,{"$f":"B26*D26*F26","v":0},{"$f":"B26*D26/$D$19*F26","v":0}]
["RME eller annan FAME 100%",null,"l ",9.17,"kWh/liter",1,0,{"$f":"B27*D27/$D$19*F27","v":0}]
["E85 ",null,"l ",6.59,"kWh/liter",1,0,0]
["ED95",null,"l ",5.9,"kWh/liter",1,0,0]
["Biogas (flytande, gas) eller fordonsgas om den innehåller minst 75% biogas",null,"kg",13.6,"kWh/kg",0.75,0,0]
["El ",3000,"kWh",1,"kWh/kWh",3,9000,918.36734693877543]
["Vätgas producerad från biomassa/vindkraft (förnybar)*",200,"kg",33,"kWh/kg",1.33,{"$f":"B32*D32*F32","v":8778},{"$f":"B32*D32/$D$19*F32","v":895.71428571428578}]
["Summa",null,null,null,null,null,{"$f":"SUM(G26:G32)","v":17778},{"$f":"SUM(H26:H32)","v":1814.0816326530612}]
["*får bara fyllas i om vätgasen har använts i ett bränslecellsfordon och INTE om den har använts i ett fordon med förbränningsmotor."]
[]
[]
[]
["Andel av total drivmedelsmängd omräknat till energi som är förnybart:",null,null,null,null,null,{"$f":"G33/(G22+G33)","v":0.71879674928233539},{"$f":"IF(ISBLANK(B15),\"Kravet ej nått\",IF(G38>=B15,\"Kravet uppfyllt\", \"Kravet ej nått\"))","v":"Kravet uppfyllt"}]
["Minsta antal liter dieselekvivalenter som enligt krav ska vara förnybara:",null,null,null,null,null,{"$f":"SUM((H33+H22)*B15)","v":1766.6428571428569},"liter dieselekvivalenter**"]
["Antal liter dieselekvivalenter av förnybart drivmedel som saknas för kravuppfyllelse:",null,null,null,null,null,{"$f":"IF(G39>=H33,G39-H33,0)","v":0},"liter dieselekvivalenter**"]
["** används för uppföljning om vite är kopplat till antal liter dieselekvivalenter"]

{"sheet":"Källhänvisningar","index":5,"n_rows":19,"n_cols":5,"rows_kept":19,"cut":false,"hidden":false,"merged":[[1,0,1,4],[2,0,2,4]]}
["Denna flik innehåller en tabell med energiinnehållsvärden som används i mallens beräkningar. Denna flik är också den sista fliken i mallen"]
["Energiinnehållsvärden som används i denna mall"]
[]
["Drivmedel","Namn i Energimydighetens datalager","Energiinnehåll*","Enhet","Kommentar"]
["Fossil Diesel, Bensin och Alkylatbensin (även sådan som innehåller inblandning av biodrivmedel under reduktionsplikten) ","Fossila dieselbränslekomponenter Fossila bensinkomponenter Alkylatbensin",9.8000000000000007,"kWh/liter","Fossila bensinkomponenter har egentligen ett energiinehåll på 8,94 kWh/m3 och Alkylatbensin 8,45 kWh/m3 men Trafikverket har valt att omfatta samtliga dessa under energiinehållet för Fossila dieselbärnslekomponenter"]
["Naturgas (flytande eller gasform)**","LNG",13.7,"kWh/kg","värdet gäller för flytande naturgas (LNG) enligt energimyndigheten men här får den även omfatta naturgas i gasform."]
["El oavsett ursprung","-","1***","kWh/kWh"]
["HVO 100%","BioHVO",9.44,"kWh/liter"]
["RME eller annan FAME 100%","FAME",9.17,"kWh/liter"]
["E85 (svensk mix: 81% bioetanol + 19% bensin)","Bioetanol i E85 + Fossila bensinkomponenter",6.59,"kWh/liter"]
["Vätgas ","Vätgas",33,"kWh/kg"]
["Vätgas producerad från biomassa/vindkraft (förnybar)","Vätgas",33,"kWh/kg"]
["ED95","ED95",5.9,"kWh/liter"]
["Biogas**** (flytande, gas) eller fordonsgas***** om den innehåller 75% biogas","Fordonsgas - biogas eller Fordonsgas",13.6,"kWh/kg","värdet gäller för  fordonsgas och biogas (gasform) enligt energimyndigheten men här får den även omfatta biogas (flytande)."]
["* Energiinehållet anger hur mycket energi i termer av J eller kWh som utvecklas vid förbränning av en viss mängd av ett bränsleslag . Värdena i denna tabell gäller för år 2017 . Källa: Energimyndighetens datalager "]
["** Densitet naturgas = 0,777kg/Nm3 "]
["*** Källa Rapport 2017/18:RFR13 Fossilfria drivmedel för att minska transportsektorns klimatpåverkan - flytande, gasformiga och elektriska drivmedel inom vägtrafik, sjöfart, luftfart och spårbunden trafik. ISBN 978-91-88607-48-5 Riksdagstryckeriet, Stockholm 2018"]
["****Densitet Biogas = 0,711kg/Nm3"]
["*****Densitet Fordonsgas = 0,768kg/Nm3"]